fUSD/lending_fUSD_20240121
["ID","MTS","AMOUNT","RATE_DAILY","PERIOD"]
[312419480,1705864232488,-401.27165539,0.000229,2]
[312419481,1705864232499,-435.04752656,0.000229,2]
[312419482,1705864232511,-634.28289295,0.000229,2]
[312419483,1705864232805,-570.09,0.000229,2]
[312419484,1705864232816,-929.82241406,0.000229,2]
[312419485,1705864232828,-1357.89469464,0.000229,2]
[312419486,1705864232839,-659.25469873,0.000229,2]
[312419487,1705864232855,-496.10168245,0.000229,2]
[312419488,1705864232867,-448.90252226,0.000229,2]
[312419489,1705864232878,-3575.20240066,0.000229,2]
[312419490,1705864232889,-2494.94839903,0.000229,2]
[312419491,1705864232901,-617.55407124,0.000229,2]
[312419509,1705864238134,-385.36892416,0.000229,2]
[312419510,1705864238270,-304761.10982861,0.000229,2]
[312419511,1705864238280,-251.305,0.000229,2]
[312419512,1705864238289,-549.1215,0.000229,2]
[312419513,1705864238299,-151.9905901,0.000229,2]
[312419514,1705864238309,-1335.74136952,0.000229,2]
[312419515,1705864238318,-1335.74136952,0.00022958,2]
[312419516,1705864238327,-1000.0,0.00022961,2]
[312419517,1705864238336,-14245.1187327,0.00022981,2]
[312419518,1705864238345,-163.03,0.00022991,2]
[312419519,1705864238354,-155.75977009,0.00022998,2]
[312419520,1705864238363,-264.4930233,0.00022998,2]
[312419522,1705864238373,-697.79476583,0.00022999,2]
[312419524,1705864238382,-314.24418711,0.00022999,2]
[312419526,1705864238391,-1022.45493899,0.00022999,2]
[312419528,1705864238400,-22697.90784523,0.00022999,2]
[312419530,1705864238409,-150.0,0.00022999,2]
[312419532,1705864238418,-150.0,0.00022999,2]
[312419534,1705864238427,-150.0,0.00022999,2]
[312419536,1705864238436,-150.0,0.00022999,2]
[312419538,1705864238445,-150.0,0.00022999,2]
[312419540,1705864238454,-58343.19940401,0.00023,2]
[312419546,1705864238500,-4105066.36280476,0.00023,2]
[312419548,1705864238511,-341803.49776485,0.00023,2]
[312419550,1705864238523,-354584.75924408,0.00023,2]
[312419756,1705864240500,-6247.971,0.00023,2]
[312419769,1705864240609,-500.0047208,0.00023,2]
[312419781,1705864240719,-2926.33919991,0.00023,2]
[312419847,1705864241311,-1123.18021454,0.00023,2]
[312420006,1705864242995,-345784.44809981,0.00023,2]
[312420039,1705864244142,-306.49,0.00023,2]
[312420040,1705864244199,-7113.50342913,0.00023,2]
[312420041,1705864244257,-11135.29472062,0.00023,2]
[312420053,1705864246161,-664.22465902,0.000228,2]
[312420054,1705864246171,-405.37255056,0.00022999,2]
[312420055,1705864246181,-772.01300797,0.00023,2]
[312420056,1705864246196,-1375.99854188,0.00023,2]
[312420057,1705864246324,-16925.93476855,0.00023,2]
[312420058,1705864246337,-1043.775,0.00023,2]
[312420059,1705864246349,-335.62,0.00023,2]
[312420060,1705864246360,-285.938,0.00023,2]
[312420061,1705864246372,-4295.8416,0.00023,2]
[312420063,1705865235577,171.68,0.00016712,2]
[312420073,1705865432126,-171.02,0.00020138,2]
[312420075,1705865432136,-207.98,0.00021798,2]
[312420076,1705865432147,-39.26074097,0.00021798,2]
[312420077,1705865432157,-269.5362,0.00021799,2]
[312420078,1705865432166,-192.83905903,0.000219,2]
[312420079,1705865432236,-494.7456237,0.000219,2]
[312420103,1705865438293,-62.41531727,0.000219,2]
[312420104,1705865438302,-1250.0,0.00022,3]
[312420105,1705865438313,-163.03,0.00022503,2]
[312420106,1705865438322,-907.75257159,0.00022622,2]
[312420107,1705865438331,-3007.50529798,0.00022899,2]
[312420108,1705865438341,-150.0,0.00022899,2]
[312420109,1705865438351,-499.4995,0.000229,2]
[312420110,1705865438360,-1000.0,0.000229,2]
[312420111,1705865438369,-4079.5137,0.000229,2]
[312420112,1705865438378,-3604.13,0.000229,2]
[312420113,1705865438389,-16721.19,0.000229,2]
[312420114,1705865438401,-29999.99,0.000229,2]
[312420115,1705865438415,-581.19657659,0.000229,2]
[312420116,1705865438426,-337.37,0.000229,2]
[312420117,1705865438435,-155.91188095,0.000229,2]
[312420118,1705865438445,-279283.99292047,0.00023,2]
[312420119,1705865438457,-354584.75924408,0.00023,2]
[312420149,1705865443194,-342.5,0.00023,2]
[312420164,1705865478920,3005.83468397,0.00016712,2]
[312420165,1705865841973,171.02,0.00017399,2]
[312420166,1705866059459,-250.0,0.0003,30]
[312420184,1705866632349,-384.45393113,0.0001956,2]
[312420186,1705866632359,-246.83985967,0.00019561,2]
[312420188,1705866632368,-211.82979924,0.00019562,2]
[312420190,1705866632378,-230.37,0.00019574,2]
[312420191,1705866632388,-155.0,0.000197,2]
[312420192,1705866632397,-247.24074097,0.0002,2]
[312420193,1705866632406,-4490.4877716,0.00021425,2]
[312420194,1705866632415,-2000.0,0.00021426,2]
[312420195,1705866632425,-239.3,0.00021461,2]
[312420196,1705866632434,-1000.0,0.00021487,2]
[312420197,1705866632444,-160.43,0.00021632,2]
[312420198,1705866632454,-150.0,0.00021643,2]
[312420199,1705866632463,-300.0,0.00021643,2]
[312420200,1705866632472,-6956.43,0.00021644,2]
[312420201,1705866632482,-377.62,0.00021644,2]
[312420202,1705866632491,-156.92,0.00021645,2]
[312420203,1705866632500,-230.37,0.00021838,2]
[312420204,1705866632510,-250.0,0.00021918,2]
[312420205,1705866632519,-289.72111305,0.00022,4]
[312420206,1705866632529,-157.3,0.00022073,2]
[312420207,1705866632539,-581.91,0.00022073,2]
[312420208,1705866632548,-744.59,0.00022073,2]
[312420209,1705866632558,-2476.20957475,0.00022307,2]
[312420210,1705866632568,-299.43328089,0.00022445,2]
[312420213,1705866632642,-78.18671911,0.00022445,2]
[312420215,1705866632653,-1236.20841783,0.00022562,2]
[312420216,1705866632665,-831.39159651,0.00022562,2]
[312420219,1705866632678,-2013.79999743,0.00022562,2]
[312420222,1705866632710,-1209.55348995,0.00022562,2]
[312420223,1705866632726,-292.16600001,0.00022562,2]
[312420224,1705866632737,-499.6034895,0.00022562,2]
[312420225,1705866632750,-526.40835608,0.00022562,2]
[312420226,1705866632761,-315.26865269,0.00022562,2]
[312420227,1705866632770,-508.54700456,0.000227,2]
[312420228,1705866632780,-395.27225416,0.00022767,2]
[312420229,1705866632795,-500.0,0.000228,2]
[312420230,1705866632808,-765.83945719,0.00022842,2]
[312420231,1705866632819,-1812.46036172,0.00022842,2]
[312420232,1705866632829,-445.00044957,0.00022843,2]
[312420234,1705866632839,-1178.56113027,0.00022898,2]
[312420235,1705866632849,-155.21884418,0.00022898,2]
[312420236,1705866632859,-697.79476683,0.00022898,2]
[312420237,1705866632870,-376.69449592,0.00022899,2]
[312420238,1705866632880,-245000.0,0.000229,2]
[312420239,1705866632890,-155.91188075,0.000229,2]
[312420240,1705866632900,-219.4511268,0.000229,2]
[312420241,1705866632909,-219.4511268,0.000229,2]
[312420242,1705866632920,-726.82151542,0.000229,2]
[312420243,1705866632931,-158.02027901,0.000229,2]
[312420244,1705866632941,-453.33874378,0.000229,2]
[312420245,1705866632951,-445.24712318,0.000229,2]
[312420246,1705866632961,-337.71417156,0.00022997,2]
[312420247,1705866632971,-343.02606752,0.00022997,2]
[312420248,1705866632981,-1203.89194118,0.00022997,2]
[312420249,1705866632991,-4551.82600287,0.00022997,2]
[312420250,1705866633001,-3720.67416025,0.00022997,2]
[312420251,1705866633012,-4248.08380975,0.00022997,2]
[312420252,1705866633022,-17219.51479789,0.00022997,2]
[312420253,1705866633033,-1961.69316483,0.00022998,2]
[312420254,1705866633043,-3776.06527258,0.00022998,2]
[312420255,1705866633053,-155.0,0.00022998,2]
[312420256,1705866633063,-7101.97002612,0.00022999,5]
[312420257,1705866633074,-199.29466552,0.00022999,2]
[312420258,1705866633084,-155.0,0.00022999,2]
[312420259,1705866633094,-196.98832126,0.00022999,2]
[312420260,1705866633105,-155.0,0.00022999,2]
[312420261,1705866633115,-10527.95115229,0.00022999,2]
[312420262,1705866633125,-33765.45615338,0.00022999,2]
[312420263,1705866633135,-250.28559694,0.00022999,2]
[312420264,1705866633146,-314.36106493,0.00022999,2]
[312420265,1705866633155,-759214.09361712,0.00023,2]
[312420282,1705866638461,-620.07290513,0.000228,2]
[312420283,1705866638473,-1403.93749487,0.000228,2]
[312420284,1705866638482,-277880.0554256,0.00023,2]
[312420285,1705866638494,-72192.79976768,0.00023,2]
[312420286,1705866638503,-282391.9594764,0.00023,2]
[312420287,1705866638518,-461.204358,0.00023,2]
[312420328,1705866640888,-500.0,0.00023,2]
[312420345,1705866641683,-220.69889728,0.00023,2]
[312420369,1705866643487,-865.1,0.00023,2]
[312420374,1705866643543,-446.4612524,0.00023,2]
[312420375,1705866643559,-1217.30562592,0.00023,2]
[312420376,1705866643570,-803.05557728,0.00023,2]
[312420377,1705866643651,-1168.608,0.00023,2]
[312420378,1705866643706,-11097.23851127,0.00023,2]
[312420393,1705866646350,-211.59650236,0.00022999,2]
[312420395,1705866646359,-1630.91539392,0.00023,2]
[312420400,1705866646401,-2231.6972002,0.00023,2]
[312420405,1705866646620,-683.32001393,0.00023,2]
[312420406,1705867190618,271.24,0.00018914,2]
[312420407,1705867319460,289.71028567,0.00020596,2]
[312420408,1705867399147,-246.83985967,0.00020744,2]
[312420409,1705867399183,-2605.00002254,0.00020745,2]
[312420410,1705867399208,-543.23992854,0.00020745,2]
[312420411,1705867399233,-525.18315791,0.00020746,2]
[312420412,1705867399259,-242.63639215,0.00020746,2]
[312420413,1705867399284,-279.32271034,0.00020746,2]
[312420414,1705867399310,-155.0,0.00020747,2]
[312420415,1705867399334,-245.07002235,0.00020748,2]
[312420416,1705867399359,-277.49,0.0002075,2]
[312420417,1705867399386,-393.56,0.00020774,2]
[312420418,1705867399412,-393.56,0.00020796,2]
[312420419,1705867399439,-150.0,0.00020814,2]
[312420420,1705867399465,-8943.0979065,0.00020815,2]
[312420421,1705867446443,-250.47360772,0.00020742,2]
[312420422,1705867446467,-197.06195071,0.00020743,2]
[312420423,1705867446488,-155.0,0.00020743,2]
[312420424,1705867446510,-314.47481954,0.00020743,2]
[312420425,1705867446532,-155.0,0.00020744,2]
[312420426,1705867446561,-393.56,0.00020818,2]
[312420427,1705867446584,-2000.0,0.00020819,2]
[312420428,1705867446609,-393.56,0.0002084,2]
[312420429,1705867446634,-393.56,0.00020862,2]
[312420430,1705867446658,-448.36696064,0.00020872,2]
[312420431,1705867446682,-393.56,0.00020883,2]
[312420432,1705867446707,-393.56,0.00020905,2]
[312420433,1705867446731,-393.56,0.00020927,2]
[312420434,1705867446757,-393.56,0.00020949,2]
[312420435,1705867446782,-393.56,0.00020971,2]
[312420436,1705867446809,-448.36696064,0.00020979,2]
[312420437,1705867446835,-393.56,0.00020993,2]
[312420438,1705867446861,-398.3,0.00020998,2]
[312420439,1705867446887,-393.56,0.00021015,2]
[312420440,1705867446909,-212.56,0.00021019,2]
[312420441,1705867446930,-499.99,0.00021019,2]
[312420442,1705867446949,-2511.28,0.00021019,2]
[312420443,1705867446970,-200.0,0.00021028,2]
[312420444,1705867446992,-8501.7,0.00021028,2]
[312420445,1705867447014,-2696.09,0.00021028,2]
[312420446,1705867447039,-393.56,0.00021036,2]
[312420447,1705867447064,-393.56,0.00021058,2]
[312420448,1705867447089,-393.56,0.0002108,2]
[312420449,1705867447111,-448.36696064,0.00021085,2]
[312420450,1705867447135,-393.56,0.00021102,2]
[312420451,1705867447159,-53.12874011,0.00021124,2]
[312420452,1705867611013,257.67,0.00018933,2]
[312420460,1705867684158,81.37971433,0.00020618,2]
[312420461,1705867695609,361.14981153,0.00018933,2]
[312420472,1705867831517,-155.0,0.00020606,2]
[312420473,1705867831527,-1204.3280847,0.00020606,2]
[312420474,1705867831536,-3049.8719153,0.00020607,2]
[312420475,1705867831573,-403.9,0.00020607,2]
[312420476,1705867831586,-795.8316766,0.00020607,2]
[312420477,1705867831595,-1044.62415914,0.00020607,2]
[312420478,1705867831605,-10531.69219125,0.00020608,2]
[312420479,1705867831614,-2477.08702393,0.00020608,2]
[312420480,1705867831624,-2605.00002254,0.00020608,2]
[312420481,1705867831633,-651.97477454,0.00020609,2]
[312420482,1705867831642,-232.15401886,0.00020609,2]
[312420483,1705867831651,-3627.40062149,0.00020609,2]
[312420484,1705867831660,-155.0,0.00020609,2]
[312420485,1705867831669,-2321.21340696,0.00020609,2]
[312420486,1705867831680,-337.83769447,0.0002061,2]
[312420487,1705867831691,-343.31134651,0.0002061,2]
[312420488,1705867831701,-199.37216447,0.0002061,2]
[312420489,1705867831710,-622.40615561,0.00020611,2]
[312420490,1705867831720,-150.0,0.00020613,2]
[312420491,1705867831730,-121.62028567,0.00020618,2]
[312420492,1705867831739,-203.0,0.00020618,2]
[312420493,1705867831749,-2000.0,0.00020803,2]
[312420494,1705867831758,-23870.0,0.00020882,2]
[312420495,1705867831767,-4236.76,0.00020882,2]
[312420496,1705867831776,-431.36,0.00020883,2]
[312420497,1705867831786,-840.0,0.00020918,2]
[312420498,1705867831795,-155.77,0.00021054,2]
[312420499,1705867831805,-157.54,0.00021059,2]
[312420500,1705867831814,-340.43125989,0.00021124,2]
[312420501,1705867831823,-2803.67,0.00021145,2]
[312420502,1705867831832,-393.56,0.00021146,2]
[312420503,1705867831842,-393.56,0.00021168,2]
[312420504,1705867831851,-393.56,0.00021189,2]
[312420505,1705867831861,-157.51,0.0002119,2]
[312420506,1705867831870,-448.36696064,0.00021192,2]
[312420507,1705867831879,-257.67,0.00021197,2]
[312420508,1705867831889,-448.36696064,0.00021299,2]
[312420509,1705867831898,-248.38,0.0002135,2]
[312420510,1705867831907,-510.13598131,0.00021371,2]
[312420511,1705867831916,-10038.41,0.00021372,2]
[312420512,1705867831928,-248.38,0.00021372,2]
[312420513,1705867831937,-248.38,0.00021395,2]
[312420514,1705867831947,-448.36696064,0.00021406,2]
[312420515,1705867831956,-248.38,0.00021417,2]
[312420516,1705867831966,-155.77,0.00021419,2]
[312420517,1705867831975,-248.38,0.0002144,2]
[312420518,1705867831984,-248.38,0.00021462,2]
[312420519,1705867831994,-248.38,0.00021485,2]
[312420520,1705867832006,-248.38,0.00021507,2]
[312420521,1705867832017,-448.36696064,0.00021512,2]
[312420522,1705867832027,-248.38,0.0002153,2]
[312420523,1705867832036,-248.38,0.00021552,2]
[312420524,1705867832045,-1621.10201732,0.0002157,2]
[312420525,1705867832074,-1154.42119526,0.0002157,2]
[312420526,1705867832084,-248.38,0.00021575,2]
[312420527,1705867832093,-248.38,0.00021597,2]
[312420528,1705867832103,-448.36696064,0.00021619,2]
[312420529,1705867832113,-248.38,0.00021619,2]
[312420530,1705867832123,-0.6818441,0.00021625,2]
[312420531,1705867832138,-156.8581559,0.00021625,2]
[312420532,1705867832147,-248.38,0.00021642,2]
[312420533,1705867832156,-293.07,0.00021644,2]
[312420534,1705867832166,-248.38,0.00021664,2]
[312420535,1705867832175,-248.38,0.00021687,2]
[312420536,1705867832185,-248.38,0.00021709,2]
[312420537,1705867832195,-361.05136195,0.00021726,2]
[312420538,1705867832230,-87.31559869,0.00021726,2]
[312420539,1705867832240,-248.38,0.00021732,2]
[312420540,1705867832249,-248.38,0.00021754,2]
[312420541,1705867832259,-248.38,0.00021777,2]
[312420542,1705867832268,-155.77,0.00021785,2]
[312420543,1705867832278,-448.36696064,0.00021833,2]
[312420544,1705867832288,-5055.44181415,0.00021844,2]
[312420545,1705867832298,-4328.84968413,0.00021845,2]
[312420546,1705867832308,-10230.55042259,0.00021847,2]
[312420547,1705867832321,-625.3747465,0.00021847,2]
[312420548,1705867832332,-2693.66661002,0.00021848,2]
[312420549,1705867832342,-157.51,0.00021854,2]
[312420550,1705867832351,-250.0,0.000219,2]
[312420551,1705867832361,-250.0,0.00021918,2]
[312420552,1705867832370,-448.36696064,0.00021939,2]
[312420553,1705867832380,-1250.0,0.00022,3]
[312420554,1705867832389,-150.0,0.00022,2]
[312420555,1705867832398,-176.39,0.00022,2]
[312420556,1705867832408,-448.36696064,0.00022046,2]
[312420557,1705867832417,-1271.51689414,0.00022079,2]
[312420558,1705867832427,-155.77,0.00022151,2]
[312420559,1705867832436,-448.36696064,0.00022153,2]
[312420560,1705867832446,-157.54,0.00022191,2]
[312420561,1705867832457,-448.36696064,0.0002226,2]
[312420562,1705867832466,-448.36696064,0.00022366,2]
[312420563,1705867832475,-293.07,0.00022445,2]
[312420564,1705867832484,-448.36696064,0.00022473,2]
[312420565,1705867832493,-157.51,0.00022518,2]
[312420566,1705867832502,-431.36,0.00022527,2]
[312420567,1705867832511,-176.39,0.00022548,2]
[312420568,1705867832521,-461.96839817,0.0002257,2]
[312420569,1705867832530,-448.36696064,0.0002258,2]
[312420570,1705867832539,-1000.0,0.00022598,2]
[312420571,1705867832549,-12183.15193464,0.00022598,2]
[312420583,1705867837520,-85255.90826536,0.00022598,2]
[312420584,1705867837530,-837.9636,0.00022598,2]
[312420585,1705867837540,-919.01823644,0.0002264,2]
[312420586,1705867837551,-181.0375733,0.00022673,2]
[312420587,1705867837561,-448.36696064,0.00022687,2]
[312420588,1705867837571,-470.66588704,0.00022696,2]
[312420589,1705867837581,-245.9945052,0.00022696,2]
[312420590,1705867837591,-540.93137533,0.00022696,2]
[312420591,1705867837602,-244.44842983,0.00022696,2]
[312420592,1705867837612,-241.59365827,0.00022696,2]
[312420593,1705867837622,-155.27174667,0.00022696,2]
[312420594,1705867837633,-9558.33230344,0.00022696,2]
[312420595,1705867837643,-203.21708329,0.00022696,2]
[312420596,1705867837652,-156.59978354,0.00022696,2]
[312420597,1705867837662,-195.65166635,0.00022696,2]
[312420598,1705867837671,-299.26807868,0.00022696,2]
[312420599,1705867837680,-325.34454612,0.00022696,2]
[312420600,1705867837689,-488.79095646,0.00022696,2]
[312420601,1705867837698,-5444.8024805,0.00022696,2]
[312420602,1705867837708,-4778.5322,0.00022697,2]
[312420603,1705867837717,-600.0,0.00022697,2]
[312420604,1705867837727,-10569.52280735,0.00022697,2]
[312420605,1705867837736,-245000.0,0.00022698,2]
[312420606,1705867837746,-10000.0,0.0002274,2]
[312420607,1705867837755,-157.54,0.00022757,2]
[312420608,1705867837764,-281.28534164,0.00022768,2]
[312420609,1705867837774,-155.0,0.00022768,2]
[312420610,1705867837783,-214.75436035,0.00022773,2]
[312420611,1705867837793,-448.36696064,0.00022793,2]
[312420612,1705867837803,-400.18486293,0.00022795,2]
[312420613,1705867837812,-158.33436037,0.00022795,2]
[312420614,1705867837822,-198.11511938,0.00022795,2]
[312420615,1705867837832,-2142.55262521,0.00022795,2]
[312420616,1705867837841,-375.7887074,0.00022795,2]
[312420617,1705867837851,-155.0,0.00022795,2]
[312420618,1705867837860,-3563.1288563,0.00022795,2]
[312420619,1705867837873,-218.93846346,0.00022795,2]
[312420620,1705867837882,-508.62165039,0.00022795,2]
[312420621,1705867837892,-417.55099435,0.00022795,2]
[312420622,1705867837901,-159.02170225,0.00022795,2]
[312420624,1705867837911,-155.0,0.00022795,2]
[312420626,1705867837920,-284.96104843,0.00022795,2]
[312420628,1705867837929,-223.06766617,0.00022795,2]
[312420630,1705867837939,-522.84300052,0.00022795,2]
[312420632,1705867837948,-183.45952934,0.00022795,2]
[312420634,1705867837958,-220.93369083,0.00022795,2]
[312420636,1705867837968,-295.2217948,0.00022795,2]
[312420638,1705867837977,-487.88555579,0.00022795,2]
[312420640,1705867837987,-174.8437244,0.00022795,2]
[312420642,1705867837996,-155.43994557,0.00022796,2]
[312420644,1705867838005,-4608.75232889,0.00022796,2]
[312420646,1705867838015,-155.0,0.00022796,2]
[312420648,1705867838025,-486.06072237,0.00022796,2]
[312420650,1705867838034,-195.20034097,0.00022796,2]
[312420652,1705867838043,-438.04827017,0.00022796,2]
[312420654,1705867838052,-158.65540183,0.00022796,2]
[312420656,1705867838062,-1143.54053925,0.00022796,2]
[312420658,1705867838071,-718.30413528,0.00022796,2]
[312420660,1705867838080,-202.72708942,0.00022796,2]
[312420662,1705867838089,-202.95261036,0.00022796,2]
[312420664,1705867838098,-291.11582638,0.00022796,2]
[312420666,1705867838107,-197.37490408,0.00022796,2]
[312420668,1705867838117,-233.07751996,0.00022796,2]
[312420670,1705867838126,-500.34599345,0.00022796,2]
[312420672,1705867838135,-198.49468833,0.00022796,2]
[312420674,1705867838144,-239.71658514,0.00022796,2]
[312420676,1705867838154,-162.01280061,0.00022796,2]
[312420678,1705867838164,-264.30177237,0.00022796,2]
[312420680,1705867838173,-98076.80846418,0.00022797,2]
[312420682,1705867838184,-155.58301169,0.00022798,2]
[312420684,1705867838195,-155.54483114,0.00022798,2]
[312420686,1705867838206,-440.2468137,0.00022798,2]
[312420689,1705867838216,-246.82813011,0.00022798,2]
[312420691,1705867838226,-755.88930372,0.00022798,2]
[312420693,1705867838235,-2899.08390333,0.00022798,2]
[312420695,1705867838246,-660.04374522,0.00022798,2]
[312420697,1705867838255,-201.6054293,0.00022798,2]
[312420699,1705867838265,-1056.16920651,0.00022798,2]
[312420701,1705867838275,-155.0,0.00022798,2]
[312420703,1705867838285,-2595.12426536,0.00022798,2]
[312420705,1705867838294,-155.97345764,0.00022798,2]
[312420707,1705867838304,-252.61413747,0.00022798,2]
[312420709,1705867838314,-155.0,0.00022798,2]
[312420711,1705867838323,-914.75035507,0.00022798,2]
[312420713,1705867838333,-384.34681583,0.00022798,2]
[312420715,1705867838342,-172.13338089,0.00022798,2]
[312420717,1705867838352,-267.71456317,0.00022798,2]
[312420719,1705867838361,-376.86476321,0.00022798,2]
[312420721,1705867838371,-155.10772643,0.00022798,2]
[312420723,1705867838380,-223.17550677,0.00022798,2]
[312420725,1705867838389,-155.0,0.00022798,2]
[312420727,1705867838398,-400.0,0.00022798,2]
[312420729,1705867838408,-155.0,0.00022798,2]
[312420731,1705867838417,-581.0662314,0.00022798,2]
[312420733,1705867838427,-485.5928344,0.00022798,2]
[312420735,1705867838437,-1411.35450445,0.00022798,2]
[312420737,1705867838446,-166.93498792,0.00022798,2]
[312420739,1705867838455,-155.16827446,0.00022798,2]
[312420741,1705867838465,-234.98930555,0.00022798,2]
[312420743,1705867838474,-1904.50432661,0.00022798,2]
[312420745,1705867838483,-427.60812227,0.00022798,2]
[312420746,1705867838492,-157.01318614,0.00022798,2]
[312420747,1705867838501,-207.78272895,0.00022798,2]
[312420748,1705867838510,-182.17402601,0.00022798,2]
[312420749,1705867838519,-162.16116158,0.00022798,2]
[312420750,1705867838528,-32779.98296167,0.00022798,2]
[312420751,1705867838537,-155.0,0.00022798,2]
[312420752,1705867838546,-155.23479183,0.00022798,2]
[312420753,1705867838555,-167.10820996,0.00022798,2]
[312420754,1705867838564,-155.0,0.00022798,2]
[312420755,1705867838573,-1041.66122871,0.00022798,2]
[312420756,1705867838582,-155.42075614,0.00022798,2]
[312420757,1705867838591,-287.84999971,0.00022798,2]
[312420758,1705867838599,-155.90493017,0.00022798,2]
[312420759,1705867838608,-316.17811747,0.00022798,2]
[312420760,1705867838618,-161.21857687,0.00022798,2]
[312420762,1705867838627,-155.0,0.00022798,2]
[312420764,1705867838637,-155.0,0.00022798,2]
[312420767,1705867838646,-301.79110902,0.00022798,2]
[312420769,1705867838655,-2780.01755274,0.00022798,2]
[312420771,1705867838664,-3077.18910357,0.00022798,2]
[312420773,1705867838673,-155.94767193,0.00022798,2]
[312420775,1705867838683,-155.45915617,0.00022798,2]
[312420777,1705867838692,-155.96119204,0.00022798,2]
[312420779,1705867838701,-209.36942818,0.00022798,2]
[312420781,1705867838711,-202.95473276,0.00022798,2]
[312420783,1705867838720,-4268.2521421,0.00022798,2]
[312420785,1705867838729,-587.57206165,0.00022798,2]
[312420787,1705867838738,-1239.10107717,0.00022798,2]
[312420789,1705867838747,-155.0,0.00022798,2]
[312420791,1705867838757,-6796.73397746,0.00022798,2]
[312420793,1705867838767,-155.0,0.00022798,2]
[312420795,1705867838776,-220.97222528,0.00022798,2]
[312420797,1705867838786,-155.50144254,0.00022798,2]
[312420799,1705867838795,-2304.66109858,0.00022799,2]
[312420801,1705867838805,-514.57867545,0.00022799,2]
[312420803,1705867838814,-201.32858077,0.00022799,2]
[312420805,1705867838823,-156.21332133,0.00022799,2]
[312420807,1705867838833,-376.11195413,0.00022799,2]
[312420809,1705867838842,-169.96990394,0.00022799,2]
[312420811,1705867838852,-1158.39981992,0.00022799,2]
[312420813,1705867838861,-607.4925,0.000228,2]
[312420815,1705867838870,-264.0283,0.000228,2]
[312420817,1705867838879,-167.70633689,0.000228,2]
[312420819,1705867838888,-180.0,0.00022846,2]
[312420821,1705867838898,-5000.0,0.00022898,2]
[312420823,1705867838908,-1611.2416,0.000229,2]
[312420826,1705867838918,-715.6235,0.000229,2]
[312420827,1705867838927,-54397.5124,0.000229,2]
[312420830,1705867838936,-209.0,0.000229,2]
[312420832,1705867838946,-4486.5872,0.000229,2]
[312420834,1705867838956,-448.36696064,0.000229,2]
[312420836,1705867838966,-154.05739359,0.000229,2]
[312420838,1705867838975,-302.2258292,0.000229,2]
[312420840,1705867838984,-219.73663919,0.000229,2]
[312420842,1705867838993,-2686.0,0.00022986,2]
[312420844,1705867839003,-150.0,0.00022997,2]
[312420846,1705867839012,-3059.49803054,0.00022998,2]
[312420848,1705867839021,-1807.4409427,0.00022998,2]
[312420850,1705867839031,-371.29552064,0.00022998,2]
[312420852,1705867839040,-318.78070964,0.00022998,2]
[312420854,1705867839050,-285.3546679,0.00022998,2]
[312420856,1705867839059,-333.74434296,0.00022998,2]
[312420858,1705867839068,-38196.79473646,0.00022998,2]
[312420860,1705867839077,-1198.3764781,0.00022998,2]
[312420862,1705867839086,-164.0104164,0.00022998,2]
[312420864,1705867839096,-172.29367536,0.00022998,2]
[312420866,1705867839105,-1254.3339191,0.00022998,2]
[312420868,1705867839114,-504.41250387,0.00022998,2]
[312420870,1705867839124,-796603.036596,0.00022998,2]
[312420872,1705867839133,-155.40050005,0.00022998,2]
[312420874,1705867839143,-262.52911397,0.00022998,2]
[312420876,1705867839153,-173.92860391,0.00022998,2]
[312420878,1705867839163,-155.91202129,0.00022998,2]
[312420880,1705867839173,-155.40463079,0.00022998,2]
[312420882,1705867839182,-531.14690522,0.00022998,2]
[312420884,1705867839193,-686.23856624,0.00022998,2]
[312420886,1705867839206,-155.28486431,0.00022998,2]
[312420888,1705867839216,-3326.03982063,0.00022998,2]
[312420890,1705867839225,-156.69657893,0.00022998,2]